bitfinex-derivatives/quotes_ETHF0:USTF0_20250708
["timestamp","ask_amount","ask_price","bid_price","bid_amount"]
[1751943266029,4.17398258,2530.2,2529.5,1.046]
[1751943266234,0.7905,2529.9,2529.8,0.6782]
[1751943266627,0.7905,2529.9,2529.8,4.71259258]
[1751943266826,1.2769,2530.4,2529.8,3.92207258]
[1751943267032,1.2769,2530.4,2530.1,2.19787258]
[1751943267033,0.79041,2530.2,2530.1,2.19787258]
[1751943267236,2.29147095,2530.2,2530.1,2.87607258]
[1751943267434,1.50106095,2530.2,2530.1,4.71251258]
[1751943268133,0.79036,2530.4,2530.3,0.79038]
[1751943268330,0.79036,2530.4,2530.3,3.66645258]
[1751943268535,2.29227618,2530.4,2530.3,3.92207258]
[1751943268926,2.29227618,2530.4,2530.3,2.4299]
[1751943269328,1.50191618,2530.4,2530.3,3.22028]
[1751943269529,1.50191618,2530.5,2530.3,3.22028]
[1751943269727,1.50191618,2530.5,2530.4,0.79035]
[1751943269728,2.29225618,2530.5,2530.4,0.79035]
[1751943269928,2.29225618,2530.5,2530.4,2.51455]
[1751943270228,2.29225618,2530.5,2530.4,1.7242]
[1751943274135,2.29225618,2530.5,2530.4,0.6782]
[1751943274529,0.79035,2530.4,2530.3,0.7057]
[1751943274841,0.79035,2530.4,2530.3,1.3839]
[1751943275934,2.28987784,2530.4,2530.3,1.3839]
[1751943276835,0.79038,2530.3,2530.2,1.046]
[1751943277234,2.10848,2530.3,2530.2,1.046]
[1751943278037,0.79041,2530.2,2530.1,0.7163]
[1751943278238,0.79041,2530.2,2530.1,1.3945]
[1751943279837,0.79041,2530.2,2530.1,2.4405]
[1751943280439,0.79041,2530.2,2530.1,1.3945]
[1751943281340,0.79041,2530.2,2530.1,0.7163]
[1751943282137,2.29003806,2530.2,2530.1,0.7163]
[1751943284036,2.29003806,2530.2,2530.1,1.3945]
[1751943285042,2.29003806,2530.2,2530.1,2.4405]
[1751943287238,2.29003806,2530.2,2530.1,1.3945]
[1751943290945,2.29193806,2530.2,2530.1,1.3945]
[1751943295744,2.29193806,2530.2,2530.1,2.3693]
[1751943298547,2.29193806,2530.2,2530.1,1.3945]
[1751943298851,4.49231307,2530.2,2530.1,0.7163]
[1751943299445,0.79053,2529.8,2529.7,0.9748]
[1751943299649,0.79053,2529.8,2529.7,2.4101]
[1751943300147,0.79053,2529.8,2529.7,3.20067]
[1751943300852,0.79053,2529.8,2529.7,4.51547]
[1751943306656,0.79053,2529.9,2529.8,0.79052]
[1751943306954,0.79053,2529.9,2529.8,5.96169501]
[1751943309254,0.79048,2530.1,2530.0,0.79045]
[1751943309461,0.79048,2530.1,2530.0,4.66742501]
[1751943309658,2.29225583,2530.1,2530.0,4.66742501]
[1751943310458,1.50177583,2530.1,2530.0,6.86780002]
[1751943310758,0.79036,2530.4,2530.3,0.79035]
[1751943310959,6.26039269,2530.6,2530.3,0.79035]
[1751943310960,2.29220933,2530.5,2530.4,0.79035]
[1751943311256,0.79031,2530.6,2530.5,0.79028]
[1751943311451,2.29249172,2530.6,2530.5,1.49208]
[1751943311760,2.29249172,2530.6,2530.5,3.85868]
[1751943311951,2.29249172,2530.6,2530.5,3.85872]
[1751943313068,2.29249172,2530.6,2530.5,3.0684]
[1751943313267,2.29313166,2530.6,2530.5,1.6766]
[1751943313468,2.29123166,2530.6,2530.5,1.6766]
[1751943314566,2.29313166,2530.6,2530.5,1.6766]
[1751943318670,2.29313166,2530.6,2530.5,2.46692]
[1751943318971,2.29310166,2530.6,2530.5,2.46692]
[1751943319271,2.29120166,2530.6,2530.5,1.6766]
[1751943319767,2.29120166,2530.6,2530.5,2.46692]
[1751943320271,2.29120166,2530.6,2530.5,1.6766]
[1751943320769,2.29120166,2530.6,2530.5,2.46692]
[1751943321374,1.50092166,2530.6,2530.5,2.46692]
[1751943321766,1.50092166,2530.6,2530.5,3.82372]
[1751943321974,2.29120166,2530.6,2530.5,3.82372]
[1751943322469,1.50092166,2530.6,2530.5,3.82372]
[1751943322674,0.79014,2531.1,2531.0,0.79015]
[1751943322968,0.79014,2531.1,2531.0,2.49155]
[1751943323173,2.286437,2531.1,2531.0,2.49155]
[1751943324175,2.286437,2531.1,2531.0,1.7014]
[1751943324476,2.286437,2531.1,2531.0,2.49156]
[1751943324974,0.79012,2531.2,2531.1,0.79012]
[1751943325176,0.79012,2531.2,2531.1,4.69189501]
[1751943325574,0.79012,2531.2,2531.1,3.90177501]
[1751943325771,0.79012,2531.2,2531.1,1.7014]
[1751943325972,0.79019,2530.9,2530.8,1.82251]
[1751943326176,0.79019,2530.9,2530.8,2.49162]
[1751943329373,0.79019,2530.9,2530.8,1.7014]
[1751943331677,0.79022,2530.8,2530.7,1.45525]
[1751943331873,0.79022,2530.8,2530.7,1.3341]
[1751943332373,0.79022,2530.8,2530.7,3.15665]
[1751943332874,0.79022,2530.8,2530.7,2.3664]
[1751943333178,0.79022,2530.8,2530.7,4.56677501]
[1751943340785,0.79022,2530.8,2530.7,1.3341]
[1751943340981,0.79022,2530.8,2530.7,0.6691]
[1751943342685,0.79022,2530.8,2530.7,2.86947501]
[1751943343182,0.79022,2530.8,2530.7,3.65972501]
[1751943344387,0.79022,2530.8,2530.7,4.69202501]
[1751943345182,0.79022,2530.8,2530.7,3.90177501]
[1751943345389,0.79022,2530.8,2530.7,4.69202501]
[1751943346287,0.79022,2530.8,2530.7,6.09252501]
[1751943347086,0.79022,2530.8,2530.7,5.30227501]
[1751943347688,0.79022,2530.8,2530.7,3.90177501]
[1751943349489,2.29715865,2530.8,2530.7,3.90177501]
[1751943349693,0.79022,2530.8,2530.7,3.90177501]
[1751943350383,0.79022,2530.8,2530.7,1.7014]
[1751943350585,2.29715867,2530.8,2530.7,0.6691]
[1751943351190,0.79025,2530.7,2530.6,0.7214]
[1751943351490,2.12225,2530.7,2530.6,1.3634]
[1751943351989,3.6299168,2530.7,2530.6,1.3634]
[1751943354295,3.6337168,2530.7,2530.6,2.337]
[1751943354491,2.3017168,2530.7,2530.6,2.337]
[1751943356702,2.3017168,2530.7,2530.6,1.3634]
[1751943358492,2.3017168,2530.7,2530.6,2.337]
[1751943361105,2.3017168,2530.7,2530.6,1.3634]
[1751943361402,1.97581,2530.5,2530.2,0.9736]
[1751943361599,0.79035,2530.4,2530.3,0.7048]
[1751943361897,0.79415,2530.4,2530.3,1.3468]
[1751943362205,0.79047,2530.0,2529.9,0.9736]
[1751943362402,0.79047,2530.0,2529.9,2.3204]
[1751943362696,0.7906,2529.6,2529.5,0.79061]
[1751943362895,0.7906,2529.6,2529.5,3.51447501]
[1751943363102,0.7906,2529.6,2529.5,5.82397501]
[1751943363703,0.7906,2529.6,2529.5,4.48807501]
[1751943368506,0.7906,2529.6,2529.5,2.2877]
[1751943368803,0.7944,2529.6,2529.5,2.2877]
[1751943369796,0.7944,2529.6,2529.5,3.07833]
[1751943369995,0.0038,2529.6,2529.5,3.07833]
[1751943370200,0.79059,2529.7,2529.6,0.7906]
[1751943370396,0.79059,2529.7,2529.6,2.4062]
[1751943372407,0.79059,2529.7,2529.6,1.6156]
[1751943372606,0.79439,2529.7,2529.6,1.6156]
[1751943372803,0.7905,2530.0,2529.6,3.81597501]
[1751943373003,0.79047,2530.0,2529.9,2.99086501]
[1751943373204,0.79047,2530.0,2529.9,3.81597501]
[1751943373406,0.79427,2530.0,2529.9,3.81597501]
[1751943373703,0.79047,2530.0,2529.9,1.6156]
[1751943374204,0.79047,2530.0,2529.5,0.6721]
[1751943374205,0.0038,2530.0,2529.6,1.76418]
[1751943374405,0.79057,2529.7,2529.6,0.79058]
[1751943374605,0.79057,2529.7,2529.6,1.43258]
[1751943374807,1.4175,2530.0,2529.7,0.79057]
[1751943374808,0.79056,2529.8,2529.7,0.79057]
[1751943375005,0.79436,2529.8,2529.7,2.40617]
[1751943375207,0.79056,2529.8,2529.7,2.40617]
[1751943375809,0.79056,2529.8,2529.7,4.60654501]
[1751943377409,0.79056,2529.8,2529.7,3.81597501]
[1751943377907,0.79056,2529.8,2529.7,4.60654501]
[1751943379706,0.79056,2529.8,2529.7,3.81597501]
[1751943380407,0.79056,2529.8,2529.7,4.60654501]
[1751943381203,0.79056,2529.8,2529.7,3.81597501]
[1751943383811,0.79206,2529.8,2529.7,1.6156]
[1751943384007,0.79056,2529.8,2529.7,1.6156]
[1751943385506,0.79206,2529.8,2529.7,1.6156]
[1751943386510,0.79206,2529.8,2529.7,3.81597501]
[1751943389909,0.79206,2529.8,2529.7,2.84237501]
[1751943390310,0.79206,2529.8,2529.7,0.642]
[1751943390510,0.79206,2529.8,2529.7,1.6199]
[1751943391322,2.30576596,2529.8,2529.7,1.6199]
[1751943393617,2.30576596,2529.8,2529.7,0.642]
[1751943393819,2.30576596,2529.8,2529.7,1.6199]
[1751943395918,2.30426596,2529.8,2529.7,1.6199]
[1751943396521,2.30576596,2529.8,2529.7,1.6199]
[1751943401027,2.30426596,2529.8,2529.7,1.6199]
[1751943401422,2.30426596,2529.8,2529.7,4.61084501]
[1751943402626,2.30426596,2529.8,2529.7,3.82027501]
[1751943403136,2.30576596,2529.8,2529.7,3.82027501]
[1751943403423,0.7906,2529.6,2529.5,3.85037501]
[1751943403624,0.7906,2529.6,2529.5,4.52307501]
[1751943403817,0.7921,2529.6,2529.5,2.3227]
[1751943404019,2.31250134,2529.6,2529.5,2.3227]
[1751943404231,0.7906,2529.6,2529.5,2.3227]
[1751943404925,0.7906,2529.6,2529.5,3.11333]
[1751943405531,0.7906,2529.6,2529.5,2.3227]
[1751943405829,0.7921,2529.6,2529.5,2.3227]
[1751943406032,2.31404132,2529.6,2529.5,2.3227]
[1751943406832,0.7921,2529.6,2529.5,2.3227]
[1751943407030,0.7906,2529.6,2529.5,2.3227]
[1751943407231,0.7921,2529.6,2529.5,2.3227]
[1751943409434,0.7921,2529.6,2529.5,3.11333]
[1751943409629,0.7921,2529.6,2529.5,2.3227]
[1751943409836,0.7906,2529.6,2529.5,5.31370501]
[1751943410729,0.7906,2529.6,2529.5,4.52307501]
[1751943410930,2.31287093,2529.6,2529.5,5.31370501]
[1751943411132,0.7906,2529.6,2529.5,5.31370501]
[1751943411731,0.7906,2529.6,2529.5,4.52307501]
[1751943412537,0.7906,2529.6,2529.5,5.31370501]
[1751943412738,0.7906,2529.6,2529.5,4.52307501]
[1751943413440,2.31291308,2529.6,2529.5,4.52307501]
[1751943414640,0.7906,2529.6,2529.5,4.52307501]
[1751943416633,0.7906,2529.6,2529.5,5.31370501]
[1751943417737,2.36639269,2530.0,2529.6,0.79058]
[1751943417738,0.7906,2529.7,2529.6,0.79058]
[1751943417930,0.79053,2529.8,2529.7,0.79055]
[1751943418130,1.52220065,2529.8,2529.7,2.43755]
[1751943418333,1.52220065,2529.8,2529.7,3.76875]
[1751943419439,0.79051,2529.9,2529.8,0.79053]
[1751943419638,0.79051,2529.9,2529.8,4.97110501]
[1751943419840,2.31216035,2529.9,2529.8,5.96910501]
[1751943421340,2.31216035,2529.9,2529.8,1.647]
[1751943421533,2.31676035,2529.9,2529.8,1.647]
[1751943421734,2.31676035,2529.9,2529.8,0.649]
[1751943422838,0.7906,2529.6,2529.5,1.6701]
[1751943423032,0.7906,2529.6,2529.5,3.10973]
[1751943423436,0.7906,2529.6,2529.5,2.3191]
[1751943423638,0.7952,2529.6,2529.5,2.3191]
[1751943424444,0.7952,2529.6,2529.5,4.51947501]
[1751943430446,0.7906,2529.6,2529.5,4.51947501]
[1751943430646,0.7952,2529.6,2529.5,4.51947501]
[1751943431243,0.7952,2529.6,2529.5,1.3211]
[1751943431642,2.31054787,2529.6,2529.5,1.3211]
[1751943431848,3.60044787,2529.6,2529.5,1.3211]
[1751943432947,2.31054787,2529.6,2529.5,2.3191]
[1751943433146,0.7952,2529.6,2529.5,2.3191]
[1751943433546,2.31047629,2529.6,2529.5,2.3191]
[1751943433744,0.7952,2529.6,2529.5,2.3191]
[1751943436046,2.31046646,2529.6,2529.5,2.3191]
[1751943436746,0.7952,2529.6,2529.5,2.3191]
[1751943437246,2.31058979,2529.6,2529.5,2.3191]
[1751943440247,2.3101854,2529.6,2529.5,1.3211]
[1751943440843,2.3101854,2529.6,2529.5,1.3439]
[1751943442948,0.79069,2529.3,2529.2,1.0504]
[1751943443146,0.79069,2529.3,2529.2,2.408]
[1751943450448,0.79069,2529.3,2529.2,1.3576]
[1751943451050,2.30542942,2529.3,2529.2,1.3576]
[1751943452451,0.79069,2529.3,2529.2,1.3576]
[1751943452648,2.30459119,2529.3,2529.2,1.3576]
[1751943453054,0.79069,2529.3,2529.2,1.3576]
[1751943455056,0.79069,2529.3,2529.2,2.408]
[1751943462258,2.30661492,2529.3,2529.2,2.408]
[1751943463960,0.79078,2529.0,2528.9,1.0504]
[1751943464160,1.46998,2529.0,2528.9,1.7222]
[1751943464465,2.98590492,2529.0,2528.9,1.7222]
[1751943464963,1.46998,2529.0,2528.9,1.7222]
[1751943466363,2.9852773,2529.0,2528.9,0.6718]
[1751943468760,2.9852773,2529.0,2528.9,1.7222]
[1751943470265,1.46998,2529.0,2528.9,1.7222]
[1751943470661,2.98554732,2529.0,2528.9,1.7222]
[1751943471464,2.98548343,2529.0,2528.9,1.7222]
[1751943471859,2.19470343,2529.0,2528.7,0.6758]
[1751943472062,0.79085,2528.8,2528.7,0.6758]
[1751943472259,3.00594629,2528.8,2528.7,1.3625]
[1751943472665,2.30644629,2528.8,2528.7,2.3235]
[1751943472863,3.00594629,2528.8,2528.7,2.3235]
[1751943473164,3.00594629,2528.8,2528.7,1.3625]
[1751943474564,3.00594629,2528.8,2528.7,0.6758]
[1751943474764,0.79097,2528.4,2528.3,0.961]
[1751943475064,0.79097,2528.4,2528.3,2.3388]
[1751943475864,0.79097,2528.4,2528.3,3.1298]
[1751943476266,0.79097,2528.4,2528.3,4.4529]
[1751943476865,4.17748501,2528.9,2528.4,0.79097]
[1751943477065,1.51452593,2528.8,2528.4,4.31444501]
[1751943477369,1.49035,2528.8,2528.7,0.6867]
[1751943477564,3.0046693,2528.8,2528.7,0.6867]
[1751943481368,1.49035,2528.8,2528.7,0.6867]
[1751943482169,3.00893715,2528.8,2528.7,0.6867]
[1751943482371,1.49035,2528.8,2528.7,0.6867]
[1751943482766,3.894,2529.0,2528.7,1.6477]
[1751943482964,1.51841557,2528.9,2528.8,2.07964]
[1751943483162,0.79077,2529.1,2528.8,2.9365]
[1751943483360,3.894,2529.3,2528.9,2.967]
[1751943483566,0.79075,2529.1,2529.0,1.2888]
[1751943483868,0.79075,2529.1,2529.0,2.9365]
[1751943484070,0.79075,2529.1,2529.0,5.13687501]
[1751943487467,0.79075,2529.1,2529.0,5.92765501]
[1751943487676,0.79075,2529.2,2529.0,5.13687501]
[1751943487966,0.79075,2529.2,2529.1,4.56777501]
[1751943488273,0.79075,2529.2,2529.1,5.25447501]
[1751943488474,0.79072,2529.3,2529.1,5.25447501]
[1751943488672,0.79072,2529.3,2529.2,2.9652]
[1751943488974,0.79072,2529.3,2529.2,3.6519]
[1751943489569,0.79072,2529.3,2529.2,2.3516]
[1751943489773,1.49022,2529.3,2529.2,2.3516]
[1751943490573,1.49022,2529.3,2529.2,1.3906]
[1751943490766,1.49022,2529.3,2529.2,2.3516]
[1751943492572,1.49022,2529.3,2529.2,1.3906]
[1751943494775,1.49022,2529.3,2529.2,2.3516]
[1751943496178,1.49022,2529.3,2529.2,1.3906]
[1751943496478,0.79082,2528.9,2528.8,0.961]
[1751943496674,0.79082,2528.9,2528.8,1.6477]
[1751943497374,0.79082,2528.9,2528.8,2.43855]
[1751943499480,0.79082,2528.9,2528.8,1.6477]
[1751943499777,0.79085,2528.8,2528.7,0.7207]
[1751943499968,0.79085,2528.8,2528.7,2.3428]
[1751943502079,1.47345,2528.8,2528.7,2.3428]
[1751943502281,0.79085,2528.8,2528.7,2.3428]
[1751943503874,0.79085,2528.8,2528.7,3.6581]
[1751943505581,0.79085,2528.8,2528.7,4.44898]
[1751943505780,0.79085,2528.8,2528.7,3.6581]
[1751943511686,0.79085,2528.8,2528.7,4.44898]
[1751943512285,2.37119038,2529.4,2529.0,0.79075]
[1751943512286,0.79077,2529.1,2529.0,0.79075]
[1751943512580,0.79075,2529.1,2529.0,3.88537501]
[1751943512976,0.79075,2529.1,2529.0,4.55647501]
[1751943515992,0.79075,2529.1,2529.0,5.34725501]
[1751943517690,0.79075,2529.1,2529.0,4.55647501]
[1751943520587,1.47335,2529.1,2529.0,5.34725501]
[1751943520790,1.2971,2529.5,2529.0,5.34725501]
[1751943520791,1.2971,2529.5,2529.0,4.55647501]
[1751943520993,0.79069,2529.3,2529.2,2.99109501]
[1751943521187,2.314723,2529.3,2529.2,4.95319501]
[1751943521387,2.314723,2529.3,2529.2,5.97709501]
[1751943521890,1.524033,2529.3,2529.2,5.97709501]
[1751943522088,0.79068,2529.4,2529.3,0.79067]
[1751943522397,0.79068,2529.4,2529.3,4.61297]
[1751943523192,0.79068,2529.4,2529.3,3.8223]
[1751943524793,0.79068,2529.4,2529.3,4.61299]
[1751943525590,0.79068,2529.4,2529.3,3.8223]
[1751943526399,0.79068,2529.4,2529.3,4.61299]
[1751943527192,0.79065,2529.5,2529.4,0.79064]
[1751943527395,0.79065,2529.5,2529.4,4.67601501]
[1751943529196,0.79065,2529.5,2529.4,3.88537501]
[1751943529388,1.47325,2529.5,2529.4,3.88537501]
[1751943534000,0.6826,2529.5,2529.4,4.67603501]
[1751943534300,0.79059,2529.7,2529.6,0.79057]
[1751943534605,0.79061,2529.6,2529.5,0.79061]
[1751943534998,0.79061,2529.6,2529.5,1.43811]
[1751943535500,0.79061,2529.6,2529.5,2.42371]
[1751943535702,0.79061,2529.6,2529.5,3.83347501]
[1751943535904,1.46491,2529.6,2529.5,3.83347501]
[1751943536598,1.46491,2529.6,2529.3,2.92877501]
[1751943536599,0.79066,2529.4,2529.3,2.92877501]
[1751943536801,0.79065,2529.5,2529.4,0.79065]
[1751943537511,0.79066,2529.4,2529.3,4.36694501]
[1751943537711,0.79066,2529.4,2529.3,3.57627501]
[1751943537913,0.79072,2529.2,2529.1,3.97669501]
[1751943538110,0.79072,2529.2,2529.1,4.62419501]
[1751943538807,1.46502,2529.2,2529.1,3.83347501]
[1751943539004,0.79072,2529.2,2529.1,3.83347501]
[1751943539202,0.79072,2529.2,2529.1,4.62422501]
[1751943539619,0.79072,2529.3,2529.2,0.7907]
[1751943540106,0.79072,2529.3,2529.2,2.4238]
[1751943540714,0.79068,2529.4,2529.3,0.79066]
[1751943540912,1.97643,2529.7,2529.3,0.79066]
[1751943540913,0.79066,2529.5,2529.4,0.79064]
[1751943541112,1.46496,2529.5,2529.4,4.62411501]
[1751943541314,0.79066,2529.5,2529.4,4.62411501]
[1751943541814,1.46496,2529.5,2529.4,4.62411501]
[1751943543315,1.46496,2529.5,2529.4,3.83347501]
[1751943543518,1.46496,2529.5,2529.4,2.84787501]
[1751943543719,1.46496,2529.5,2529.4,3.63853501]
[1751943544012,0.79066,2529.4,2529.3,0.6681]
[1751943544216,0.79074,2529.2,2529.1,0.79073]
[1751943544517,1.46504,2529.2,2529.1,2.11633]
[1751943545112,1.46504,2529.2,2529.1,1.3256]
[1751943545415,1.46504,2529.2,2529.1,2.11635]
[1751943545818,1.46504,2529.2,2529.1,3.10195]
[1751943546018,0.79074,2529.2,2529.1,3.10195]
[1751943546519,1.46504,2529.2,2529.1,0.6781]
[1751943546814,1.46504,2529.2,2529.1,1.3256]
[1751943547515,1.46504,2529.2,2529.1,0.6781]
[1751943547715,1.46504,2529.2,2529.1,1.3256]
[1751943548911,0.79074,2529.2,2529.1,1.3256]
[1751943549109,1.46504,2529.2,2529.1,1.3256]
[1751943549913,1.46504,2529.2,2529.1,2.11635]
[1751943550822,1.46504,2529.2,2529.1,1.3256]
[1751943556620,1.46504,2529.2,2529.1,3.10195]
[1751943557225,0.79074,2529.2,2529.1,3.10195]
[1751943557622,0.79072,2529.3,2529.2,0.79069]
[1751943557824,0.79072,2529.3,2529.2,3.63856501]
[1751943558131,0.79072,2529.3,2529.2,5.20307501]
[1751943558724,0.79072,2529.3,2529.2,5.99379501]
[1751943561331,1.46072,2529.3,2529.2,1.6331]
[1751943561832,1.46072,2529.3,2529.2,2.42382]
[1751943562722,0.79068,2529.4,2529.3,0.79066]
[1751943562931,0.79068,2529.4,2529.3,5.99753501]
[1751943564325,0.79068,2529.4,2529.3,5.20687501]
[1751943564725,1.46068,2529.4,2529.3,5.20687501]
[1751943565230,1.46068,2529.4,2529.3,3.90407501]
[1751943567834,1.46068,2529.4,2529.3,2.86397501]
[1751943568732,2.98028179,2529.4,2529.3,0.6636]
[1751943568932,2.98028179,2529.4,2529.1,1.7182]
[1751943568933,0.79072,2529.2,2529.1,0.6781]
[1751943569230,1.46072,2529.2,2529.1,0.6781]
[1751943569426,0.79078,2529.0,2528.9,1.0401]
[1751943569625,1.46078,2529.0,2528.9,2.3771]
[1751943569828,0.79078,2529.0,2528.9,2.3771]
[1751943570233,1.46078,2529.0,2528.9,2.3771]
[1751943570530,1.46078,2529.0,2528.9,1.337]
[1751943570739,0.79078,2529.0,2528.9,1.337]
[1751943571440,1.46078,2529.0,2528.9,1.337]
[1751943571631,0.79078,2529.0,2528.9,1.337]
[1751943571826,1.46078,2529.0,2528.9,4.57747501]
[1751943572634,1.46078,2529.0,2528.9,2.3771]
[1751943572835,1.46078,2529.0,2528.9,1.337]
[1751943574736,2.98264066,2529.0,2528.9,1.337]
[1751943577842,4.16885066,2529.0,2528.5,11.13810501]
[1751943578048,0.79088,2528.7,2528.6,1.51921]
[1751943578338,1.46088,2528.7,2528.6,2.432]
[1751943579542,1.46088,2528.7,2528.6,3.22291]
[1751943581236,1.46088,2528.7,2528.6,2.432]
[1751943581740,1.46088,2528.7,2528.6,3.22291]
[1751943582943,1.46088,2528.7,2528.6,2.432]
[1751943583641,1.46088,2528.7,2528.6,3.22291]
[1751943583843,1.46088,2528.7,2528.6,2.432]
[1751943584747,1.46088,2528.7,2528.6,3.22291]
[1751943588746,1.3041,2529.1,2528.6,3.22291]
[1751943588953,0.79075,2529.1,2529.0,2.20037501]
[1751943589250,2.98335868,2529.1,2529.0,2.86397501]
[1751943589452,2.98335868,2529.1,2529.0,0.6636]
[1751943590345,2.98335868,2529.1,2529.0,4.69485501]
[1751943590650,2.98335868,2529.1,2529.0,3.90407501]
[1751943591149,2.98335868,2529.1,2529.0,0.6636]
[1751943594349,2.98335868,2529.1,2529.0,1.6523]
[1751943594553,2.98335868,2529.1,2529.0,3.85267501]
[1751943595246,2.98335868,2529.1,2529.0,2.86397501]
[1751943595646,2.98335868,2529.1,2529.0,0.6636]
[1751943596655,2.98335868,2529.1,2529.0,1.6523]
[1751943598352,2.98335868,2529.1,2529.0,0.6636]
[1751943599248,0.79078,2529.0,2528.9,0.708]
[1751943599553,2.95658868,2529.0,2528.9,0.708]
[1751943600048,2.95658868,2529.0,2528.9,1.3778]
[1751943600353,0.79088,2528.7,2528.6,2.99128501]
[1751943600552,0.79088,2528.7,2528.6,0.6698]
[1751943600752,0.79091,2528.6,2528.5,0.9887]
[1751943600951,0.79091,2528.6,2528.5,1.6585]
[1751943601154,0.79091,2528.6,2528.5,0.9887]
[1751943601851,2.31529529,2528.6,2528.5,0.9887]
[1751943602045,3.65649529,2528.6,2528.5,0.9887]
[1751943602953,2.31529529,2528.6,2528.5,1.6585]
[1751943603153,2.31529529,2528.6,2528.5,3.85887501]
[1751943603648,2.31529529,2528.6,2528.5,1.6585]
[1751943603856,0.79097,2528.4,2528.3,3.86667501]
[1751943604052,0.79097,2528.4,2528.3,4.53647501]
[1751943604357,0.79097,2528.4,2528.3,5.32747501]
[1751943604756,0.79097,2528.4,2528.3,4.53647501]
[1751943605259,1.43417,2528.4,2528.3,4.53647501]
[1751943605657,0.79097,2528.4,2528.3,4.53647501]
[1751943605956,1.43417,2528.4,2528.3,4.53647501]
[1751943606355,1.43417,2528.4,2528.3,2.3361]
[1751943606559,0.79108,2528.1,2527.8,2.20037501]
[1751943606865,0.79106,2528.2,2528.0,4.64996501]
[1751943607162,0.79104,2528.2,2528.1,3.98013501]
[1751943607355,0.79104,2528.2,2528.1,6.06564501]
[1751943607557,0.79102,2528.3,2528.2,0.79104]
[1751943607756,0.79102,2528.3,2528.2,2.15934]
[1751943607964,0.79102,2528.3,2528.2,3.14804]
[1751943608265,0.79102,2528.3,2528.2,2.357]
[1751943608451,0.79102,2528.3,2528.2,3.14804]
[1751943608658,0.79102,2528.3,2528.2,2.357]
[1751943608858,0.79102,2528.3,2528.2,3.14804]
[1751943610864,0.79099,2528.4,2528.3,0.79099]
[1751943611063,0.79099,2528.4,2528.3,3.66116501]
[1751943611263,0.79099,2528.4,2528.3,3.85887501]
[1751943611664,0.79099,2528.4,2528.3,5.19547501]
[1751943612866,0.79096,2528.5,2528.3,5.19547501]
[1751943613067,0.79096,2528.5,2528.4,2.20037501]
[1751943613265,0.79096,2528.5,2528.4,5.19547501]
[1751943613464,0.79093,2528.6,2528.5,0.79093]
[1751943613766,0.79093,2528.6,2528.5,6.68750501]
[1751943614661,5.1967,2529.2,2528.5,5.89657501]
[1751943614862,0.79072,2529.2,2529.1,2.20037501]
[1751943615058,2.97475785,2529.2,2529.1,2.87017501]
[1751943615259,2.97475785,2529.2,2529.1,3.85887501]
[1751943615468,0.79072,2529.2,2529.1,3.85887501]
[1751943615956,11.5665,2529.6,2529.1,3.85887501]
[1751943616167,2.33170857,2529.5,2529.4,2.20037501]
[1751943616365,1.43383,2529.5,2529.4,2.87017501]
[1751943616565,1.43383,2529.5,2529.4,3.85887501]
[1751943619373,0.79063,2529.5,2529.4,3.85887501]
[1751943619579,1.97634,2529.9,2529.4,4.64952501]
[1751943619874,0.79057,2529.7,2529.6,2.20037501]
[1751943620074,0.79057,2529.7,2529.6,3.84107501]
[1751943620471,0.79057,2529.7,2529.6,6.01767501]
[1751943620666,0.79057,2529.7,2529.6,5.22707501]
[1751943622367,1.47607,2529.7,2529.6,5.22707501]
[1751943622582,0.79057,2529.7,2529.6,3.84107501]
[1751943622877,1.47607,2529.7,2529.6,3.84107501]
[1751943623273,0.79057,2529.7,2529.6,1.6407]
[1751943623471,1.47607,2529.7,2529.6,1.6407]
[1751943627473,0.79066,2529.4,2529.3,1.0435]
[1751943627675,0.79066,2529.4,2529.3,1.6955]
[1751943627676,1.47616,2529.4,2529.3,1.6955]
[1751943627882,0.79066,2529.4,2529.3,1.6955]
[1751943628480,1.47616,2529.4,2529.3,1.6955]
[1751943628680,0.79066,2529.4,2529.3,1.6955]
[1751943629479,0.79066,2529.4,2529.3,2.48619]
[1751943630077,1.97611,2530.1,2529.3,1.6955]
[1751943630279,0.79062,2529.6,2529.5,2.20037501]
[1751943630478,1.97611,2530.1,2529.5,5.31027501]
[1751943630479,3.894,2530.0,2529.5,5.31027501]
[1751943630682,0.7905,2529.9,2529.8,2.20037501]
[1751943631180,0.7905,2529.9,2529.8,5.05730501]
[1751943631381,0.7905,2529.9,2529.8,6.10080501]
[1751943631680,0.7905,2529.9,2529.8,5.31027501]
[1751943631887,0.7905,2529.9,2529.8,6.10080501]
[1751943632785,0.7905,2529.9,2529.8,5.31027501]
[1751943633280,0.7905,2529.9,2529.8,6.10080501]
[1751943635486,0.7905,2529.9,2529.8,6.10079501]
[1751943635988,0.7905,2529.9,2529.8,5.31027501]
[1751943636281,0.7905,2529.9,2529.8,6.10080501]
[1751943636482,0.7821,2529.9,2529.8,5.31027501]
[1751943640690,0.7821,2529.9,2529.8,6.10080501]
[1751943641389,0.79049,2530.0,2529.9,0.79049]
[1751943641684,0.7905,2529.9,2529.8,4.40528501]
[1751943641883,0.7905,2529.9,2529.8,4.26677501]
[1751943642081,0.7905,2529.9,2529.8,5.05730501]
[1751943642283,0.7905,2529.9,2529.8,6.10080501]
[1751943644492,0.7905,2530.0,2529.9,0.7905]
[1751943644691,0.7905,2530.0,2529.9,3.64287501]
[1751943644990,0.7905,2530.0,2529.9,3.89587501]
[1751943645186,0.7905,2530.0,2529.9,4.68637501]
[1751943645583,0.79047,2530.0,2529.9,4.68635501]
[1751943645787,4.34700038,2530.5,2529.9,3.89587501]
[1751943645988,0.79044,2530.2,2530.1,0.79043]
[1751943646188,0.79044,2530.2,2530.1,1.44243]
[1751943646395,0.79041,2530.3,2530.2,0.79041]
[1751943646594,0.79041,2530.3,2530.2,1.44241]